[Event "Gibraltar Amateurs B 2019"]
[Site "Caleta"]
[Date "2019.01.29"]
[Round "4"]
[White "Cernuda Orejas, Victor Manuel"]
[Black "Lane, Ryan"]
[Result "0-1"]
[ECO "A48"]
[WhiteElo "1893"]
[BlackElo "1851"]
[Annotator "NA RC"]
[PlyCount "136"]
[EventDate "2019.01.18"]
[EventType "swiss"]
[EventCountry "GGB"]
[SourceTitle "playchess.com"]
[Source "ChessBase"]
[SourceQuality "1"]
[TimeControl "6600+10"]

1. c3 {[%emt 0:00:08]} Nf6 {[%emt 0:00:03]} 2. d4 {[%emt 0:00:17]} g6 {[%emt 0:00:11]} 3. Bg5 {[%emt 0:00:24]} Bg7 {[%emt 0:00:18]} 4. Nf3 {[%emt 0:00:13]} d6 {[%emt 0:01:04]} 5. Nbd2 {[%emt 0:00:29]} h6 {[%emt 0:04:49] A48: 1 d4 Nf6 2 Nf3 g6: Torre, London and Colle Systems} (5... O-O 6. e4 c5 7. dxc5 dxc5 8. Bc4 Nc6 9. Qe2 Qc7 10. O-O h6 11. Bxf6 Bxf6 12. Qe3 Bg7 13. Qxc5 b6 14. Qe3 Bb7 15. Rfd1 e6 16. Be2 Rfd8 17. Nf1 a6 18. h4 b5 19. N1h2 Rxd1+ 20. Rxd1 {1-0 (35) Harikrishna,P (2744)-Duda,J (2717) Riadh 2017}) 6. Bxf6 {[%emt 0:00:06]} Bxf6 {[%emt 0:00:04]} 7. e4 {[%emt 0:00:08]} Bg7 {[%emt 0:00:13]} 8. Bd3 {[%emt 0:00:05]} Nd7 {[%emt 0:02:19]} 9. Qc2 $146 {[%emt 0:00:13]} ({Predecessor:} 9. O-O O-O 10. Re1 e5 11. Qc2 c6 12. Rad1 Qc7 13. a4 Nf6 {½-½ (44) Polovodin,I (2440)-Kuzmin,G (2555) St Petersburg 1997}) 9... c5 {[%emt 0:05:43]} 10. O-O {[%emt 0:00:21]} O-O {[%emt 0:01:03]} 11. Rfe1 {[%emt 0:01:12]} Qc7 {[%emt 0:01:29]} 12. Rac1 {[%emt 0:00:14]} a6 {[%emt 0:01:40]} 13. dxc5 {[%emt 0:01:07]} Nxc5 {[%emt 0:06:05]} 14. Nb3 {[%emt 0:00:09]} Nxd3 {[%emt 0:04:00]} 15. Qxd3 {[%emt 0:00:06]} b6 {[%emt 0:00:50]} 16. Qe3 {[%emt 0:00:43]} Bb7 {[%emt 0:00:37]} 17. Nbd2 {[%emt 0:01:18]} Rfd8 {[%emt 0:05:55]} 18. Nd4 {[%emt 0:00:26]} Rac8 {[%emt 0:01:30]} 19. Ne2 {[%emt 0:00:06]} Qc5 {[%emt 0:04:57]} 20. Nf4 {[%emt 0:02:24]} Qxe3 {[%emt 0:12:25]} 21. Rxe3 {[%emt 0:00:15]} h5 {[%emt 0:03:49]} 22. Nd5 {[%emt 0:00:16]} Bxd5 {[%emt 0:00:26]} 23. exd5 {[%emt 0:00:05]} Bh6 {[%emt 0:00:42]} 24. Rd3 {[%emt 0:00:05]} b5 {[%emt 0:01:21]} 25. Re1 {[%emt 0:00:14]} Bxd2 {[%emt 0:00:11]} 26. Rxd2 {[%emt 0:00:06]} Kf8 {[%emt 0:00:27]} 27. f4 {[%emt 0:00:50]} Rc4 {[%emt 0:00:25]} 28. Rf1 {[%emt 0:00:38]} Kg7 {[%emt 0:02:29]} 29. f5 {[%emt 0:00:17]} g5 {[%emt 0:00:17]} 30. f6+ $1 {[%emt 0:00:26]} exf6 {[%emt 0:00:07]} 31. Rdf2 {[%emt 0:00:05]} Re4 {[%emt 0:02:46]} 32. Rxf6 {[%emt 0:00:14]} Rd7 {[%emt 0:00:17]} 33. R6f2 {[%emt 0:00:56]} Re5 {[%emt 0:01:18]} 34. Rd2 {[%emt 0:00:26]} Rde7 {[%emt 0:00:17]} 35. Rfd1 {[%emt 0:00:39]} Re2 {[%emt 0:01:05]} 36. Kf1 {[%emt 0:00:11]} Rxd2 {[%emt 0:00:04]} 37. Rxd2 {[%emt 0:00:04]} f5 {[%emt 0:00:16]} 38. b3 {[%emt 0:00:59]} Re4 {[%emt 0:01:31]} 39. Rc2 {[%emt 0:00:31]} Kf6 {[%emt 0:00:35]} 40. c4 {[%emt 0:00:54]} bxc4 {[%emt 0:00:05]} 41. bxc4 {[%emt 0:00:08]} Ke5 {[%emt 0:00:10]} 42. c5 {[%emt 0:02:01]} Kxd5 {[%emt 0:00:53]} 43. c6 {[%emt 0:00:11]} Re8 {[%emt 0:00:12]} 44. Kf2 {[%emt 0:00:29]} Rc8 {[%emt 0:00:10]} 45. c7 {[%emt 0:00:05]} Ke6 {[%emt 0:00:05]} 46. Rc6 {[%emt 0:00:36]} Kd7 {[%emt 0:00:06]} 47. Rxa6 {[%emt 0:00:04]} Rxc7 {[%emt 0:00:05]} 48. h3 {[%emt 0:03:43]} Rc2+ {[%emt 0:00:55]} 49. Kf3 {[%emt 0:00:10]} Ke6 {[%emt 0:00:19]} 50. Ra8 {[%emt 0:01:48]} h4 {[%emt 0:01:39]} 51. Re8+ {[%emt 0:01:01]} Kf7 {[%emt 0:03:15]} 52. Ra8 {[%emt 0:00:35]} Rc3+ {[%emt 0:00:08]} 53. Kf2 {[%emt 0:00:08]} Kf6 {[%emt 0:00:12]} 54. a4 {[%emt 0:00:19]} Ke5 {[%emt 0:00:19]} 55. Rb8 $2 {[%emt 0:03:49]} (55. a5) 55... Ra3 {[%emt 0:00:25]} 56. Rb5+ {[%emt 0:02:07]} d5 {[%emt 0:00:11]} 57. a5 {[%emt 0:00:04]} Ke4 {[%emt 0:00:22]} 58. Rb4+ {[%emt 0:07:42]} d4 {[%emt 0:00:10]} 59. Rb5 {[%emt 0:00:05]} Ra2+ {[%emt 0:00:36]} 60. Kf1 {[%emt 0:00:30]} d3 {[%emt 0:00:38]} 61. Ke1 {[%emt 0:01:55]} Rxg2 {[%emt 0:01:45]} 62. Rb8 {[%emt 0:00:05]} Ra2 {[%emt 0:00:19]} 63. Re8+ {[%emt 0:00:21]} Kf3 {[%emt 0:00:15]} 64. Re5 {[%emt 0:02:17]} Kf4 {[%emt 0:00:38]} 65. Rd5 {[%emt 0:00:17]} Ke4 {[%emt 0:00:12]} 66. Rb5 {[%emt 0:00:13]} g4 {[%emt 0:00:23]} 67. hxg4 {[%emt 0:00:09]} fxg4 {[%emt 0:00:16]} 68. Kf1 {[%emt 0:00:56]} h3 {[%emt 0:00:50]} 0-1

[Event "Gibraltar Amateurs B 2019"]
[Site "Caleta"]
[Date "2019.01.29"]
[Round "4"]
[White "Valladolid Martin, Fco. Jose"]
[Black "Bosschem, Eddy"]
[Result "0-1"]
[ECO "B52"]
[WhiteElo "1878"]
[BlackElo "1847"]
[Annotator "NA RC"]
[PlyCount "98"]
[EventDate "2019.01.18"]
[EventType "swiss"]
[EventCountry "GGB"]
[SourceTitle "playchess.com"]
[Source "ChessBase"]
[SourceQuality "1"]
[TimeControl "6600+10"]

1. e4 {[%emt 0:06:25]} c5 {[%emt 0:00:00]} 2. Nf3 {[%emt 0:00:23]} d6 {[%emt 0:00:08]} 3. Bb5+ {[%emt 0:00:20]} Bd7 {[%emt 0:03:12]} 4. Bxd7+ {[%emt 0:00:07]} Qxd7 {[%emt 0:01:03]} 5. O-O {[%emt 0:00:06]} Nc6 {[%emt 0:02:08]} 6. b3 {[%emt 0:00:14]} e6 {[%emt 0:03:09] B52: Sicilian: Moscow Variation with 3...Bd7} (6... Nf6 7. Re1 e5 8. c3 Be7 9. d4 O-O 10. d5 Nd8 11. c4 Ne8 12. Nc3 g6 13. Rb1 b6 14. a3 Rc8 15. Qd3 {0-1 (49) Kabanov,N (2472)-Zvjaginsev,V (2659) Khanty-Mansiysk 2013}) 7. Bb2 {[%emt 0:02:09]} Nf6 {[%emt 0:00:15]} 8. Qe2 {[%emt 0:00:10]} Be7 {[%emt 0:00:23]} 9. d4 {[%emt 0:00:43]} cxd4 {[%emt 0:00:22]} 10. Nxd4 {[%emt 0:00:05]} O-O {[%emt 0:00:33]} 11. c4 {[%emt 0:00:16]} d5 {[%emt 0:17:01]} 12. cxd5 {[%emt 0:21:16]} exd5 {[%emt 0:05:40]} 13. e5 {[%emt 0:01:59]} Ne4 {[%emt 0:11:28]} 14. Kh1 $146 {[%emt 0:09:13]} ({Predecessor:} 14. Rd1 Bc5 {½-½ (40) Valdez Aguero,D (1900)-Sabahaddin,B (1964) IECG email 2002}) 14... Nxd4 {[%emt 0:20:55]} 15. Bxd4 {[%emt 0:00:31]} a6 {[%emt 0:02:08]} 16. Nd2 {[%emt 0:02:34]} Nxd2 {[%emt 0:04:06]} 17. Qxd2 {[%emt 0:00:30]} f6 {[%emt 0:03:25]} 18. exf6 {[%emt 0:01:35]} Bxf6 {[%emt 0:00:07]} 19. Rad1 {[%emt 0:00:58]} Bxd4 {[%emt 0:01:53]} 20. Qxd4 {[%emt 0:00:08]} Rad8 {[%emt 0:00:25]} 21. Rfe1 {[%emt 0:01:07]} Rfe8 {[%emt 0:02:21]} 22. Kg1 {[%emt 0:01:39]} Rxe1+ {[%emt 0:06:38]} 23. Rxe1 {[%emt 0:00:06]} Kh8 {[%emt 0:04:43]} 24. h4 {[%emt 0:01:52]} h6 {[%emt 0:00:13]} 25. a4 {[%emt 0:05:53]} Rc8 {[%emt 0:07:14]} 26. Re5 {[%emt 0:03:40]} Rd8 {[%emt 0:00:48]} 27. h5 {[%emt 0:00:31]} Qd6 {[%emt 0:01:51]} 28. b4 {[%emt 0:01:35]} Qf6 {[%emt 0:00:06]} 29. g3 {[%emt 0:10:37]} Qd6 {[%emt 0:02:49]} 30. f4 {[%emt 0:00:34]} Qf6 {[%emt 0:00:49]} 31. Kf2 {[%emt 0:01:29]} Qd6 {[%emt 0:00:27]} 32. Qc5 {[%emt 0:06:23]} ({Better is} 32. a5 $14) 32... Qd7 $1 {[%emt 0:01:11]} 33. Qe7 {[%emt 0:01:27]} Qc8 {[%emt 0:00:05]} 34. Qc5 {[%emt 0:04:45]} Qh3 {[%emt 0:00:59]} 35. Qd4 {[%emt 0:06:37]} Qh1 {[%emt 0:03:31]} 36. Re7 {[%emt 0:01:01]} Qh2+ {[%emt 0:00:53]} 37. Kf3 {[%emt 0:00:21]} Qxh5+ {[%emt 0:00:06]} 38. Kg2 {[%emt 0:03:14]} Qg4 {[%emt 0:00:16]} 39. Rxb7 {[%emt 0:00:20]} Re8 $11 {[%emt 0:01:06]} 40. Qxd5 {[%emt 0:01:44]} Re2+ {[%emt 0:00:41]} 41. Kf1 {[%emt 0:00:14]} Re8 {[%emt 0:01:01]} 42. Qd3 {[%emt 0:03:22]} Qc8 {[%emt 0:00:14]} 43. Qxa6 {[%emt 0:02:05]} Qc1+ {[%emt 0:00:07]} 44. Kg2 {[%emt 0:00:27]} Qd2+ {[%emt 0:00:02]} 45. Kh3 {[%emt 0:00:18]} Re2 {[%emt 0:00:16]} 46. Kg4 {[%emt 0:03:30]} Qd1 {[%emt 0:00:11]} 47. Kf5 {[%emt 0:01:00]} Qd5+ {[%emt 0:00:19]} 48. Kg4 {[%emt 0:00:48]} h5+ {[%emt 0:00:01]} 49. Kh3 {[%emt 0:00:35]} Qh1# {[%emt 0:00:22] Rb8+} 0-1

[Event "Gibraltar Amateurs B 2019"]
[Site "Caleta"]
[Date "2019.01.29"]
[Round "4"]
[White "Bryant, Richard B E"]
[Black "Salas Martin, Javier"]
[Result "1/2-1/2"]
[ECO "B07"]
[WhiteElo "1862"]
[BlackElo "1749"]
[Annotator "NA RC"]
[PlyCount "103"]
[EventDate "2019.01.18"]
[EventType "swiss"]
[EventCountry "GGB"]
[SourceTitle "playchess.com"]
[Source "ChessBase"]
[SourceQuality "1"]
[TimeControl "6600+10"]

1. e4 {[%emt 0:00:00] CB} d6 {[%emt 0:00:01]} 2. d4 {[%emt 0:00:00]} Nf6 {[%emt 0:00:08]} 3. Nc3 {[%emt 0:00:16]} e5 {[%emt 0:00:17]} 4. dxe5 {[%emt 0:01:00]} dxe5 {[%emt 0:00:08]} 5. Qxd8+ {[%emt 0:00:05]} Kxd8 {[%emt 0:00:07]} 6. Nf3 {[%emt 0:01:16]} Bd6 {[%emt 0:00:45]} 7. Bg5 {[%emt 0:06:46]} Be6 {[%emt 0:00:57]} 8. O-O-O {[%emt 0:01:23]} Nbd7 {[%emt 0:01:01]} 9. Nb5 {[%emt 0:01:57]} Ke7 {[%emt 0:01:08]} 10. Nxd6 {[%emt 0:00:51]} cxd6 {[%emt 0:00:20]} 11. Bb5 {[%emt 0:05:45] B07: Pirc Defence: Miscellaneous Systems} Rhc8 $146 {[%emt 0:01:07]} ({Predecessor:} 11... Rhd8 12. Nd2 h6 13. Bh4 g5 14. Bg3 a6 15. Bxd7 Rxd7 16. f3 Rc8 17. Kb1 Nh5 18. Nf1 f5 19. exf5 Bxf5 {0-1 (42) Vallejo Pons,F (2697)-Carlsen,M (2843) Sao Paulo/Bilbao 2012 CBM 151 [CB]}) 12. Kb1 {[%emt 0:02:31]} Rc7 {[%emt 0:00:25]} 13. Rhe1 {[%emt 0:02:53]} Rac8 {[%emt 0:00:23]} 14. Rd2 {[%emt 0:04:37]} h6 {[%emt 0:09:03]} 15. Bh4 {[%emt 0:02:52]} g5 {[%emt 0:02:30]} 16. Bg3 {[%emt 0:00:05]} Nc5 {[%emt 0:04:14]} 17. Bd3 {[%emt 0:04:05]} Bd7 {[%emt 0:08:26]} 18. Ng1 {[%emt 0:01:22]} a5 {[%emt 0:08:00]} 19. f3 {[%emt 0:00:43]} Nh5 {[%emt 0:02:07]} 20. Bf2 {[%emt 0:02:08]} Nxd3 {[%emt 0:01:22]} 21. cxd3 {[%emt 0:00:16]} a4 {[%emt 0:04:50]} 22. Ne2 {[%emt 0:03:23]} b5 {[%emt 0:02:24]} 23. Bb6 {[%emt 0:02:38]} Rb7 {[%emt 0:02:24]} 24. Be3 {[%emt 0:00:54]} b4 {[%emt 0:01:52]} 25. d4 {[%emt 0:02:19]} b3 {[%emt 0:04:27]} 26. a3 {[%emt 0:00:22]} Rbc7 {[%emt 0:00:10]} (26... f5 $11 {keeps the balance.}) 27. dxe5 {[%emt 0:01:14]} ({White should try} 27. Nc3 $16) 27... dxe5 {[%emt 0:00:26]} 28. Nc3 {[%emt 0:00:44]} Nf6 {[%emt 0:01:05]} (28... Bc6 $14) 29. h4 {[%emt 0:00:48]} Rg8 {[%emt 0:03:50]} 30. hxg5 {[%emt 0:03:02]} hxg5 {[%emt 0:00:17]} 31. Red1 {[%emt 0:02:09]} g4 $2 {[%emt 0:06:20] [#]} (31... Rc4 $14) 32. Rd6 $2 {[%emt 0:02:11]} (32. Rd5 $1 $18 {[%mdl 512]}) 32... Rc6 {[%emt 0:01:40]} (32... Be6 $14) 33. Nd5+ {[%emt 0:01:49]} (33. Rxc6 $16 Bxc6 34. Bc5+ Ke8 35. Rd6 {[%mdl 64] Double Attack}) 33... Nxd5 {[%emt 0:00:20]} 34. R6xd5 {[%emt 0:00:22]} Be6 {[%emt 0:01:35]} 35. Rxe5 {[%emt 0:00:47]} gxf3 {[%emt 0:00:07]} 36. gxf3 {[%emt 0:00:16]} Rg3 {[%emt 0:01:50]} 37. Bc5+ {[%emt 0:01:23]} Kf6 {[%emt 0:00:23]} 38. f4 {[%emt 0:06:38]} Bg4 {[%emt 0:04:27]} 39. Re1 {[%emt 0:05:55]} Rg2 $2 {[%emt 0:02:51] [#]} (39... Rd3 $11) 40. Bd4 $1 {[%emt 0:01:10]} Rd6 {[%emt 0:11:05]} 41. Bc3 {[%emt 0:02:00]} Bf3 {[%emt 0:04:10] [#]} 42. Re8+ $1 {[%emt 0:10:50]} Kg6 {[%emt 0:00:58]} 43. Rg8+ {[%emt 0:12:15]} Kh7 {[%emt 0:02:33]} 44. Rh8+ {[%emt 0:00:07]} (44. Rh1+ {mates} Rh2 45. Rxh2+ Bh5 46. Rxh5+ Rh6 47. Rh8+ Kg6 48. R8xh6#) 44... Kg6 {[%emt 0:00:17]} 45. Rg8+ {[%emt 0:01:45]} Kh7 {[%emt 0:00:05]} 46. Rxg2 $2 {[%emt 0:00:21]} Bxe4+ {[%emt 0:00:38]} 47. Kc1 {[%emt 0:00:35]} Bxg2 {[%emt 0:00:13]} 48. Rg1 {[%emt 0:01:22]} Be4 {[%emt 0:00:46]} 49. Rg7+ {[%emt 0:01:29]} Kh6 {[%emt 0:00:15]} 50. Rxf7 {[%emt 0:00:27]} Bf3 {[%emt 0:00:25]} 51. Rf6+ $11 {[%emt 0:00:32]} Rxf6 {[%emt 0:00:13]} 52. Bxf6 {[%emt 0:00:03]} 1/2-1/2

[Event "Gibraltar Amateurs B 2019"]
[Site "Caleta"]
[Date "2019.01.29"]
[Round "4"]
[White "Hermes, Geoff R"]
[Black "Sahil Dhawan"]
[Result "0-1"]
[ECO "D02"]
[WhiteElo "1860"]
[BlackElo "1843"]
[Annotator "NA RC"]
[PlyCount "54"]
[EventDate "2019.01.18"]
[EventType "swiss"]
[EventCountry "GGB"]
[SourceTitle "playchess.com"]
[Source "ChessBase"]
[SourceQuality "1"]
[TimeControl "6600+10"]

1. d4 {[%emt 0:00:00]} Nf6 {[%emt 0:00:14]} 2. Bf4 {[%emt 0:00:04]} e6 {[%emt 0:00:22]} 3. e3 {[%emt 0:01:11]} c5 {[%emt 0:03:14]} 4. c3 {[%emt 0:00:23]} d5 {[%emt 0:00:32]} 5. Bd3 {[%emt 0:01:13]} Bd6 {[%emt 0:00:26]} 6. Bg3 {[%emt 0:00:54]} Nc6 {[%emt 0:01:31]} 7. Nf3 {[%emt 0:00:52]} O-O {[%emt 0:00:31]} 8. Nbd2 {[%emt 0:00:49]} b6 {[%emt 0:00:22]} 9. e4 {[%emt 0:03:05] D02: 1 d4 d5 2 Nf3 sidelines, including 2...Nf6 3 g3 and 2...Nf6 3 Bf4} (9. Qe2 Bb7 10. Rd1 Re8 11. e4 Be7 12. e5 Nh5 13. h4 cxd4 14. Nxd4 Nxg3 15. fxg3 Bc5 16. N2f3 f5 {½-½ (45) Esipenko,A (2593)-Karjakin,S (2753) St Petersburg 2018}) 9... dxe4 {[%emt 0:06:11]} 10. Nxe4 {[%emt 0:02:01]} Be7 {[%emt 0:02:24]} 11. dxc5 {[%emt 0:03:16]} bxc5 {[%emt 0:00:32]} 12. Qe2 {[%emt 0:04:06]} Bb7 {[%emt 0:05:16]} 13. Rd1 {[%emt 0:05:06]} Nd5 $146 {[%emt 0:09:30]} ({Predecessor:} 13... Qb6) 14. c4 {[%emt 0:04:02]} Qa5+ {[%emt 0:01:17]} 15. Rd2 {[%emt 0:13:03]} Ndb4 {[%emt 0:02:33]} 16. Bb1 {[%emt 0:02:04]} Nxa2 {[%emt 0:06:27]} (16... Nd4 $11 {remains equal.} 17. Nxd4 cxd4) 17. Bxa2 {[%emt 0:08:37]} Qxa2 {[%emt 0:00:24]} 18. O-O {[%emt 0:00:25]} Rad8 {[%emt 0:05:18]} 19. Nd6 {[%emt 0:02:11]} Ba8 {[%emt 0:08:26]} 20. b4 {[%emt 0:04:17]} Qa3 {[%emt 0:00:00]} 21. b5 $1 {[%emt 0:02:12] [#]} Nd4 $1 {[%emt 0:04:11]} 22. Nxd4 $2 {[%emt 0:03:01]} (22. Qe3 $1 $15 Nxf3+ 23. gxf3 Qxe3 24. fxe3) 22... cxd4 {[%emt 0:00:11]} 23. Ra2 {[%emt 0:13:17]} (23. Ne4 {was called for.} d3 24. Qe3) 23... d3 {[%emt 0:05:50]} 24. Qd2 {[%emt 0:02:08]} Qc5 {[%emt 0:00:20]} 25. Rfa1 {[%emt 0:09:57]} Bxd6 {[%emt 0:02:19]} 26. Rxa7 {[%emt 0:01:32]} (26. Ra3 {[%emt 0:01:31]} a6 27. Rxa6 {[%emt 0:00:11]} Bf4 {[%emt 0:00:40]} 28. Ra7) 26... Bxg3 {[%emt 0:00:40]} 27. hxg3 {[%emt 0:00:05]} Qxc4 {[%emt 0:01:02]} 0-1

[Event "Gibraltar Amateurs B 2019"]
[Site "Caleta"]
[Date "2019.01.29"]
[Round "4"]
[White "Marcos Herrero, Francisco"]
[Black "Manukonda Arun"]
[Result "1-0"]
[ECO "A11"]
[WhiteElo "1855"]
[BlackElo "1814"]
[Annotator "NA RC"]
[PlyCount "79"]
[EventDate "2019.01.18"]
[EventType "swiss"]
[EventCountry "GGB"]
[SourceTitle "playchess.com"]
[Source "ChessBase"]
[SourceQuality "1"]
[TimeControl "6600+10"]

1. c4 {[%emt 0:00:00]} c6 {[%emt 0:06:10]} 2. Nf3 {[%emt 0:00:28]} d5 {[%emt 0:00:24]} 3. b3 {[%emt 0:00:10]} Nf6 {[%emt 0:00:04]} 4. g3 {[%emt 0:00:15]} g6 {[%emt 0:00:11]} 5. Bb2 {[%emt 0:00:05]} Bg7 {[%emt 0:00:01]} 6. Bg2 {[%emt 0:00:15]} O-O {[%emt 0:00:11]} 7. O-O {[%emt 0:00:08]} dxc4 {[%emt 0:08:13]} 8. bxc4 {[%emt 0:00:32]} Qb6 {[%emt 0:00:42] A11: English Opening: 1...c6} (8... c5 9. d3 Nc6 10. Ne5 Na5 11. Qc1 Qc7 12. Nd2 Ne8 13. f4 Nd6 14. Bc3 Rb8 15. Qa3 b6 16. Bxa5 bxa5 {1-0 (31) Aronian,L (2784)-Carlsen,M (2851) Stavanger 2016}) 9. Qb3 {[%emt 0:01:55]} Nbd7 {[%emt 0:04:14]} 10. Bd4 {[%emt 0:08:10]} Qc7 {[%emt 0:00:24]} 11. d3 {[%emt 0:00:49]} e5 $146 {[%emt 0:00:29]} ({Predecessor:} 11... c5 12. Bc3 Nh5 13. Bxg7 Nxg7 14. Nc3 {1-0 (29) Schmarr,D (1965)-Schrodt,H (1664) Berlin 2007}) 12. Bb2 {[%emt 0:02:50]} e4 {[%emt 0:04:11]} 13. Ne1 {[%emt 0:07:08]} Nc5 {[%emt 0:01:52]} 14. Qa3 {[%emt 0:02:12]} exd3 {[%emt 0:03:33]} 15. exd3 {[%emt 0:03:55]} b6 {[%emt 0:07:07]} 16. d4 {[%emt 0:01:06]} Nce4 {[%emt 0:00:26]} 17. Nf3 {[%emt 0:02:55]} Bg4 {[%emt 0:01:30]} 18. Nbd2 {[%emt 0:00:05]} Bh6 {[%emt 0:01:22]} 19. Nxe4 {[%emt 0:00:36]} Nxe4 {[%emt 0:00:25]} 20. Ne5 {[%emt 0:00:08]} Nf6 {[%emt 0:02:52]} 21. Nxg4 {[%emt 0:00:49]} Nxg4 {[%emt 0:00:02]} 22. d5 {[%emt 0:00:49]} Bg7 {[%emt 0:02:09]} 23. Bxg7 {[%emt 0:04:33]} Kxg7 {[%emt 0:00:02]} 24. Rfd1 {[%emt 0:00:28]} Ne5 {[%emt 0:04:14]} 25. d6 {[%emt 0:03:08]} Qd7 {[%emt 0:02:14]} 26. c5 {[%emt 0:03:45]} Rfe8 $2 {[%emt 0:02:55]} (26... f6 27. Qe3 Rfc8 28. cxb6 axb6) 27. Qc3 {[%emt 0:02:12]} f6 {[%emt 0:00:19]} 28. cxb6 {[%emt 0:03:33]} Rac8 {[%emt 0:03:03]} (28... Rec8 $142 29. f4 Nf7) 29. Rab1 {[%emt 0:00:32]} axb6 {[%emt 0:04:10]} 30. Rxb6 {[%emt 0:01:45]} Qa7 $2 {[%emt 0:02:16]} (30... Red8 {keeps fighting.} 31. Qb3 Qf5) 31. Qb3 {[%emt 0:08:29]} Rb8 {[%emt 0:01:37]} 32. d7 $1 {[%emt 0:03:07]} Nxd7 {[%emt 0:05:51] [#]} 33. Rxd7+ $1 {[%emt 0:01:06] Remove Defender} Qxd7 {[%emt 0:00:02]} 34. Rxb8 {[%emt 0:00:07]} Re1+ {[%emt 0:00:38]} 35. Bf1 {[%emt 0:00:19]} Qh3 {[%emt 0:00:23]} 36. Rb7+ {[%emt 0:00:59]} Kh6 {[%emt 0:00:41]} 37. Qd3 {[%emt 0:00:36]} Qe6 {[%emt 0:00:55]} 38. h4 {[%emt 0:06:33]} Qxa2 {[%emt 0:00:59]} 39. Qd7 {[%emt 0:01:17]} Qg8 {[%emt 0:00:21]} 40. Qd2+ {[%emt 0:00:07] Double Attack} 1-0

[Event "Gibraltar Amateurs B 2019"]
[Site "Caleta"]
[Date "2019.01.29"]
[Round "4"]
[White "Garcia-Blazquez Perez, Manuel"]
[Black "Towers, Brian"]
[Result "1/2-1/2"]
[ECO "C01"]
[WhiteElo "1849"]
[BlackElo "1710"]
[Annotator "NA"]
[PlyCount "135"]
[EventDate "2019.01.18"]
[EventType "swiss"]
[EventCountry "GGB"]
[SourceTitle "playchess.com"]
[Source "ChessBase"]
[SourceQuality "1"]
[TimeControl "6600+10"]

1. e4 {[%emt 0:00:00]} e6 {[%emt 0:00:26]} 2. d4 {[%emt 0:00:00]} d5 {[%emt 0:00:04]} 3. Bd3 {[%emt 0:00:03]} dxe4 {[%emt 0:00:30]} 4. Bxe4 {[%emt 0:00:05]} Nf6 {[%emt 0:00:12]} 5. Bf3 {[%emt 0:00:05]} c5 {[%emt 0:02:41]} 6. Ne2 {[%emt 0:00:06]} Nc6 {[%emt 0:06:32] C01: French: Exchange Variation} 7. Be3 {[%emt 0:00:18]} cxd4 {[%emt 0:00:29]} (7... Nd5 8. Bxd5 Qxd5 9. Nbc3 Qxg2 10. Rg1 Qf3 11. Nb5 Rb8 12. dxc5 Bd7 13. Nc7+ Kd8 14. Nb5 {0-1 (54) Kramnik,V (2808)-Caruana,F (2808) Stavanger 2017}) 8. Nxd4 {[%emt 0:01:28]} Nxd4 {[%emt 0:00:52]} 9. Qxd4 {[%emt 0:00:10]} Qxd4 {[%emt 0:00:21]} 10. Bxd4 {[%emt 0:00:05]} Bb4+ {[%emt 0:04:34]} 11. c3 {[%emt 0:01:33]} Bd6 $146 {[%emt 0:02:39]} ({Predecessor:} 11... Be7 12. c4 O-O 13. Nc3 Nd7 14. O-O {1-0 (31) Meinhardt,M (2383)-Florea,D (2267) Germany 2017}) 12. Nd2 {[%emt 0:12:20]} e5 {[%emt 0:00:24]} 13. Be3 {[%emt 0:02:07]} O-O {[%emt 0:11:22]} 14. Nc4 {[%emt 0:01:30]} Bc7 {[%emt 0:00:09]} 15. Rd1 {[%emt 0:31:10]} e4 {[%emt 0:05:55]} 16. Be2 {[%emt 0:00:07]} b6 {[%emt 0:03:33]} 17. Na3 {[%emt 0:01:16]} Be6 {[%emt 0:04:46]} 18. Nb5 {[%emt 0:03:03]} Be5 {[%emt 0:02:34]} 19. O-O {[%emt 0:01:05]} Ng4 {[%emt 0:05:57]} 20. Bxg4 {[%emt 0:21:12]} Bxg4 {[%emt 0:00:10]} 21. Rd5 {[%emt 0:01:11]} f6 {[%emt 0:00:31]} 22. Nd4 {[%emt 0:02:35]} Bxd4 {[%emt 0:09:54]} 23. Rxd4 {[%emt 0:00:13]} Be2 {[%emt 0:00:09]} 24. Re1 {[%emt 0:00:05]} Bd3 {[%emt 0:00:09]} 25. a4 {[%emt 0:06:51]} Rad8 {[%emt 0:02:55]} 26. Ra1 {[%emt 0:00:15]} Rxd4 {[%emt 0:03:19]} 27. Bxd4 {[%emt 0:00:08]} Rf7 {[%emt 0:00:11]} 28. b4 {[%emt 0:00:51]} Rb7 {[%emt 0:03:48]} 29. f3 {[%emt 0:00:38]} exf3 {[%emt 0:08:27]} 30. gxf3 {[%emt 0:00:17]} a6 {[%emt 0:00:07]} 31. Kf2 {[%emt 0:00:26]} b5 {[%emt 0:00:33]} 32. Ke3 {[%emt 0:02:06]} Bc4 {[%emt 0:00:02]} 33. Bc5 {[%emt 0:02:37]} Rd7 {[%emt 0:00:40]} 34. Bd4 {[%emt 0:00:13]} Kf7 {[%emt 0:01:36]} 35. axb5 {[%emt 0:00:52]} axb5 {[%emt 0:00:10]} 36. f4 {[%emt 0:00:39]} Re7+ {[%emt 0:02:51]} 37. Kf3 {[%emt 0:00:24]} h5 {[%emt 0:01:10]} 38. h4 $11 {[%emt 0:00:29] keeps the balance.} Bd5+ {[%emt 0:07:56]} 39. Kf2 {[%emt 0:02:05]} Bc4 {[%emt 0:00:25]} 40. f5 {[%emt 0:01:01]} Bd3 {[%emt 0:01:54]} 41. Bc5 {[%emt 0:01:31]} Rd7 {[%emt 0:01:20]} 42. Rc1 {[%emt 0:02:00]} Bxf5 {[%emt 0:05:06]} 43. c4 {[%emt 0:00:04]} bxc4 {[%emt 0:00:11]} 44. Rxc4 {[%emt 0:00:08]} Bd3 {[%emt 0:00:15]} 45. Rc1 {[%emt 0:00:16]} g5 {[%emt 0:00:43]} 46. Kg3 $17 {[%emt 0:01:05]} (46. hxg5 $11 {keeps the balance.} fxg5 47. Be3) 46... Bb5 {[%emt 0:01:28]} 47. hxg5 {[%emt 0:00:08]} fxg5 {[%emt 0:00:12]} 48. Be3 {[%emt 0:01:37]} Rd5 {[%emt 0:03:59]} 49. Rc8 {[%emt 0:02:35]} h4+ {[%emt 0:00:00]} 50. Kf2 {[%emt 0:01:50]} Rf5+ {[%emt 0:00:00]} 51. Kg2 {[%emt 0:01:27]} g4 {[%emt 0:00:00]} 52. Rc5 {[%emt 0:00:27]} Rxc5 {[%emt 0:00:00]} 53. bxc5 {[%emt 0:00:05]} Bc6+ {[%emt 0:00:00]} 54. Kh2 {[%emt 0:00:20]} Kg6 {[%emt 0:00:00]} 55. Bf2 {[%emt 0:00:09]} Kg5 {[%emt 0:00:00]} 56. Be3+ {[%emt 0:00:38]} Kh5 {[%emt 0:00:03]} 57. Bf4 {[%emt 0:00:21]} Bf3 {[%emt 0:00:29]} 58. Bd6 {[%emt 0:00:19]} Kg6 {[%emt 0:01:44]} 59. Be7 {[%emt 0:01:02]} g3+ {[%emt 0:00:02]} 60. Kh3 {[%emt 0:00:37]} g2 {[%emt 0:00:07]} 61. Kh2 {[%emt 0:00:05]} Kh5 {[%emt 0:00:44]} 62. Bd6 {[%emt 0:00:07]} h3 {[%emt 0:00:38]} 63. Be5 {[%emt 0:00:05]} Kg4 {[%emt 0:00:04]} 64. Bd4 {[%emt 0:00:11]} Bc6 {[%emt 0:00:11]} 65. Bg1 {[%emt 0:00:54]} Bd7 {[%emt 0:00:02]} 66. Bd4 {[%emt 0:00:09]} Kf3 {[%emt 0:00:12]} 67. c6 {[%emt 0:00:11]} Bxc6 {[%emt 0:00:04]} 68. Kxh3 {[%emt 0:00:06]} 1/2-1/2